fUSD/lending_fUSD_20250216
["ID","MTS","AMOUNT","RATE_DAILY","PERIOD"]
[353262053,1739721052493,-695.87,0.00011287,2]
[353262054,1739721052502,-500.0,0.00011287,2]
[353262055,1739721052511,-500.0,0.00011287,2]
[353262056,1739721052521,-500.0,0.00011287,2]
[353262057,1739721052530,-500.0,0.00011287,2]
[353262058,1739721052540,-500.0,0.00011287,2]
[353262059,1739721052549,-510.97,0.00011287,2]
[353262060,1739721052558,-734.7,0.00011287,2]
[353262061,1739721052568,-969.79,0.00011287,2]
[353262062,1739721052577,-500.0,0.00011287,2]
[353262063,1739721052588,-500.0,0.00011287,2]
[353262064,1739721052597,-500.0,0.00011287,2]
[353262065,1739721052610,-500.0,0.00011287,2]
[353262066,1739721052619,-779.31,0.00011287,2]
[353262067,1739721052629,-500.0,0.00011287,2]
[353262068,1739721052638,-620.63,0.00011287,2]
[353262069,1739721052648,-547.91,0.00011287,2]
[353262070,1739721052658,-500.0,0.00011287,2]
[353262071,1739721052666,-500.0,0.00011287,2]
[353262072,1739721052676,-500.0,0.00011287,2]
[353262073,1739721052686,-644.32,0.00011287,2]
[353262074,1739721052696,-500.0,0.00011287,2]
[353262075,1739721052706,-500.0,0.00011287,2]
[353262076,1739721052715,-500.0,0.00011287,2]
[353262077,1739721052724,-1000.0,0.00011287,2]
[353262078,1739721052733,-500.0,0.00011287,2]
[353262079,1739721052742,-663.53,0.00011287,2]
[353262080,1739721052751,-500.0,0.00011287,2]
[353262081,1739721052760,-577.79,0.00011287,2]
[353262082,1739721052769,-500.0,0.00011287,2]
[353262083,1739721052779,-802.04,0.00011287,2]
[353262084,1739721052788,-508.24,0.00011287,2]
[353262085,1739721052797,-521.82,0.00011287,2]
[353262086,1739721052806,-500.0,0.00011287,2]
[353262087,1739721052816,-609.63,0.00011287,2]
[353262088,1739721052826,-713.47,0.00011287,2]
[353262089,1739721052836,-500.0,0.00011287,2]
[353262090,1739721052845,-613.56,0.00011287,2]
[353262091,1739721052856,-500.0,0.00011287,2]
[353262092,1739721052867,-620.5,0.00011287,2]
[353262093,1739721052876,-500.0,0.00011287,2]
[353262094,1739721052885,-736.78,0.00011287,2]
[353262095,1739721052894,-500.0,0.00011287,2]
[353262096,1739721052903,-1811.17,0.00011287,2]
[353262097,1739721052914,-500.0,0.00011287,2]
[353262098,1739721052923,-500.0,0.00011287,2]
[353262099,1739721052932,-500.0,0.00011287,2]
[353262100,1739721052941,-8263.71414923,0.00011357,2]
[353262101,1739721052951,-500.0,0.00011368,2]
[353262102,1739721052961,-500.0,0.00011368,2]
[353262103,1739721052970,-500.0,0.00011368,2]
[353262104,1739721052980,-500.0,0.00011368,2]
[353262105,1739721052991,-500.0,0.00011368,2]
[353262106,1739721053002,-500.0,0.00011368,2]
[353262107,1739721053011,-529.73,0.00011368,2]
[353262108,1739721053021,-500.0,0.00011368,2]
[353262109,1739721053031,-500.0,0.00011368,2]
[353262110,1739721053040,-500.0,0.00011368,2]
[353262111,1739721053050,-547.43,0.00011368,2]
[353262112,1739721053059,-500.0,0.00011368,2]
[353262113,1739721053069,-287.912544,0.00011368,2]
[353262114,1739721053078,-500.0,0.00011368,2]
[353262115,1739721053088,-500.0,0.00011368,2]
[353262116,1739721053098,-379.631566,0.00011368,2]
[353262117,1739721053108,-872.13,0.00011368,2]
[353262118,1739721053118,-500.0,0.00011368,2]
[353262119,1739721053127,-500.0,0.00011368,2]
[353262120,1739721053137,-561.18146465,0.00011368,2]
[353262121,1739721053146,-500.0,0.00011368,2]
[353262122,1739721053156,-500.0,0.00011368,2]
[353262123,1739721053165,-500.0,0.00011368,2]
[353262124,1739721053176,-1229.4,0.00011368,2]
[353262125,1739721053185,-500.0,0.00011368,2]
[353262126,1739721053194,-500.0,0.00011368,2]
[353262127,1739721053204,-500.0,0.00011368,2]
[353262128,1739721053213,-500.0,0.00011368,2]
[353262129,1739721053223,-500.0,0.00011368,2]
[353262130,1739721053232,-500.0,0.00011368,2]
[353262131,1739721053247,-579.83,0.00011368,2]
[353262132,1739721053256,-500.0,0.00011368,2]
[353262133,1739721053266,-524.61,0.00011368,2]
[353262134,1739721053479,-500.0,0.00011368,2]
[353262135,1739721053489,-500.0,0.00011368,2]
[353262136,1739721053498,-500.0,0.00011368,2]
[353262137,1739721053507,-500.0,0.00011368,2]
[353262138,1739721053517,-852.15,0.00011368,2]
[353262139,1739721053526,-500.0,0.00011368,2]
[353262140,1739721053535,-500.0,0.00011368,2]
[353262141,1739721053545,-154.13,0.00011368,2]
[353262142,1739721053554,-1519.92,0.00011368,2]
[353262143,1739721053563,-831.13,0.00011368,2]
[353262144,1739721053573,-500.0,0.00011368,2]
[353262145,1739721053583,-500.0,0.00011368,2]
[353262146,1739721053592,-609.65,0.00011368,2]
[353262147,1739721053603,-523.33,0.00011368,2]
[353262148,1739721053615,-605.69,0.00011368,2]
[353262149,1739721053626,-500.0,0.00011368,2]
[353262150,1739721053635,-182.16779791,0.00011368,2]
[353262151,1739721054044,-1033.88220209,0.00011368,2]
[353262152,1739721054054,-287.2420124,0.00011368,2]
[353262153,1739721054066,-212.7579876,0.00011368,2]
[353262154,1739721054076,-680.66,0.00011368,2]
[353262155,1739721054085,-261.83801265,0.00011368,2]
[353262156,1739721134106,1000.0,0.00013041,15]
[353262157,1739721134422,1000.0,0.00013041,15]
[353262158,1739721134756,1000.0,0.00013041,15]
[353262159,1739721135056,1000.0,0.00013041,15]
[353262160,1739721135367,1000.0,0.00013041,15]
[353262161,1739721136188,1000.0,0.00013041,15]
[353262162,1739721136487,1000.0,0.00013041,15]
[353262163,1739721136792,1000.0,0.00013041,15]
[353262164,1739721137116,1000.0,0.00013041,15]
[353262165,1739721137422,1000.0,0.00013041,15]
[353262166,1739721141687,1000.0,0.00013041,15]
[353262167,1739721141978,1000.0,0.00013041,15]
[353262168,1739721142293,1000.0,0.00013041,15]
[353262169,1739721142598,1000.0,0.00013041,15]
[353262170,1739721143404,1000.0,0.00013041,15]
[353262171,1739721152532,1146.0,0.00013041,15]
[353262172,1739721366503,500.0,0.0002,120]
[353262173,1739721366757,500.0,0.0002,120]
[353262174,1739721391684,4544.92314447,0.00013,15]
[353262175,1739721631198,150.0,0.00019974,120]
[353262177,1739721690741,150.0,0.00019071,120]
[353262179,1739721750759,150.0,0.00019629,120]
[353262181,1739721771994,829.17,8.219e-05,2]
[353262182,1739721793801,-3080.0,8.836e-05,2]
[353262183,1739721810750,150.0,0.00016505,120]
[353262188,1739722012913,500.0,0.0002,120]
[353262189,1739722013173,500.0,0.0002,120]
[353262198,1739722232393,-1396.50221221,8.836e-05,2]
[353262199,1739722232405,-2059.04999991,8.836e-05,2]
[353262200,1739722232450,-576.47308612,8.836e-05,2]
[353262201,1739722232564,-2887.97470176,8.836e-05,2]
[353262202,1739722232574,-3999.4565,8.836e-05,2]
[353262203,1739722232583,-200.0,8.87e-05,2]
[353262204,1739722232592,-345.256,8.973e-05,2]
[353262205,1739722232601,-200.0,9.08e-05,2]
[353262206,1739722232610,-4622.51586266,9.344e-05,2]
[353262207,1739722232626,-9036.3505552,9.344e-05,2]
[353262208,1739722232636,-200.0,9.504e-05,2]
[353262209,1739722232645,-4886.22707147,9.705e-05,2]
[353262210,1739722232657,-2459.27562302,9.705e-05,2]
[353262211,1739722232667,-200.0,9.719e-05,2]
[353262212,1739722232676,-250.0,9.73e-05,2]
[353262213,1739722232685,-247.32437689,9.782e-05,2]
[353262214,1739722232697,-1582.22003,9.782e-05,2]
[353262215,1739722232740,-170.45559311,9.782e-05,2]
[353262216,1739722232749,-150.0,9.912e-05,2]
[353262217,1739722232759,-448.32482545,9.912e-05,2]
[353262423,1739722238241,-565.3098335,9.912e-05,2]
[353262424,1739722238250,-4651.01148743,9.913e-05,2]
[353262425,1739722238262,-11892.72271579,9.913e-05,2]
[353262426,1739722238297,-1231.8115,9.913e-05,2]
[353262427,1739722238309,-385.36424049,9.913e-05,2]
[353262428,1739722238321,-865.69,9.913e-05,2]
[353262429,1739722238333,-4873.40005629,9.913e-05,2]
[353262430,1739722238342,-168.1,9.984e-05,2]
[353262431,1739722238352,-542.44079571,9.984e-05,2]
[353262432,1739722238362,-150.0,0.00010134,2]
[353262433,1739722238371,-153.19,0.00010137,2]
[353262434,1739722238381,-877.93,0.0001014,2]
[353262435,1739722238390,-1000.0,0.00010169,2]
[353262436,1739722238399,-485.74,0.00010203,2]
[353262437,1739722238409,-1500.0,0.00010203,2]
[353262438,1739722238419,-422.98,0.00010243,2]
[353262439,1739722238428,-500.0,0.00010274,2]
[353262440,1739722238437,-181.12,0.00010278,2]
[353262441,1739722238447,-150.0,0.00010401,2]
[353262442,1739722238456,-164.78,0.00010468,2]
[353262443,1739722238466,-943.42,0.00010468,2]
[353262455,1739722238694,-500.0,0.00010468,2]
[353262457,1739722238704,-829.17,0.00010471,2]
[353262459,1739722238713,-526.79726906,0.000106,2]
[353262461,1739722238723,-227.11518821,0.00010863,2]
[353262463,1739722238732,-500.0,0.00010964,2]
[353262465,1739722238742,-600.0,0.00010964,2]
[353262467,1739722238751,-600.0,0.00010964,2]
[353262469,1739722238760,-415.99926698,0.00010977,2]
[353262470,1739722238770,-333.15,0.00011,2]
[353262471,1739722238779,-60746.13102663,0.00011031,2]
[353262472,1739722238789,-180.23916766,0.00011039,2]
[353262473,1739722238798,-500.0,0.00011039,2]
[353262474,1739722238808,-500.0,0.00011039,2]
[353262475,1739722238818,-500.0,0.00011039,2]
[353262476,1739722238828,-500.0,0.00011039,2]
[353262477,1739722238837,-500.0,0.00011039,2]
[353262478,1739722238847,-500.0,0.00011039,2]
[353262479,1739722238857,-500.0,0.00011039,2]
[353262480,1739722238866,-72.74199603,0.00011039,2]
[353262481,1739722238879,-427.25800397,0.00011039,2]
[353262482,1739722238888,-500.0,0.00011039,2]
[353262483,1739722238898,-500.0,0.00011039,2]
[353262484,1739722238907,-500.0,0.00011039,2]
[353262485,1739722238918,-500.0,0.00011039,2]
[353262486,1739722238927,-49.95817223,0.00011039,2]
[353262487,1739722238938,-450.04182777,0.00011039,2]
[353262488,1739722238948,-500.0,0.00011039,2]
[353262489,1739722238959,-380.51382223,0.00011039,2]
[353262490,1739722238971,-119.48617777,0.00011039,2]
[353262491,1739722238981,-500.0,0.00011039,2]
[353262492,1739722238990,-500.0,0.00011039,2]
[353262493,1739722239000,-500.0,0.00011039,2]
[353262494,1739722239009,-500.0,0.00011039,2]
[353262495,1739722239020,-500.0,0.00011039,2]
[353262496,1739722239030,-500.0,0.00011039,2]
[353262497,1739722239040,-500.0,0.00011039,2]
[353262498,1739722239049,-500.0,0.00011039,2]
[353262499,1739722239059,-500.0,0.00011039,2]
[353262500,1739722239068,-500.0,0.00011039,2]
[353262501,1739722239077,-500.0,0.00011039,2]
[353262502,1739722239086,-500.0,0.00011039,2]
[353262503,1739722239095,-500.0,0.00011039,2]
[353262504,1739722239105,-500.0,0.00011039,2]
[353262505,1739722239116,-500.0,0.00011039,2]
[353262506,1739722239125,-500.0,0.00011039,2]
[353262507,1739722239134,-500.0,0.00011039,2]
[353262508,1739722239143,-500.0,0.00011039,2]
[353262509,1739722239156,-500.0,0.00011039,2]
[353262510,1739722239165,-500.0,0.00011039,2]
[353262511,1739722239175,-500.0,0.00011039,2]
[353262512,1739722239184,-500.0,0.00011039,2]
[353262513,1739722239194,-500.0,0.00011039,2]
[353262514,1739722239203,-500.0,0.00011039,2]
[353262515,1739722239212,-500.0,0.00011039,2]
[353262516,1739722239222,-500.0,0.00011039,2]
[353262517,1739722239232,-500.0,0.00011039,2]
[353262518,1739722239241,-500.0,0.00011039,2]
[353262519,1739722239250,-500.0,0.00011039,2]
[353262520,1739722239260,-500.0,0.00011039,2]
[353262521,1739722239269,-500.0,0.00011039,2]
[353262522,1739722239278,-500.0,0.00011039,2]
[353262523,1739722239287,-500.0,0.00011039,2]
[353262524,1739722239296,-500.0,0.00011039,2]
[353262525,1739722239305,-500.0,0.00011039,2]
[353262526,1739722239314,-500.0,0.00011039,2]
[353262527,1739722239324,-500.0,0.00011039,2]
[353262528,1739722239333,-500.0,0.00011039,2]
[353262529,1739722239343,-500.0,0.00011039,2]
[353262530,1739722239352,-500.0,0.00011039,2]
[353262531,1739722239361,-500.0,0.00011039,2]
[353262532,1739722239370,-500.0,0.00011039,2]
[353262533,1739722239381,-500.0,0.00011039,2]
[353262534,1739722239391,-500.0,0.00011039,2]
[353262535,1739722239400,-500.0,0.00011039,2]
[353262536,1739722239409,-500.0,0.00011039,2]
[353262537,1739722239419,-500.0,0.00011039,2]
[353262538,1739722239428,-500.0,0.00011039,2]
[353262539,1739722239437,-500.0,0.00011039,2]
[353262540,1739722239448,-500.0,0.00011039,2]
[353262541,1739722239457,-500.0,0.00011039,2]
[353262542,1739722239467,-500.0,0.00011039,2]
[353262543,1739722239476,-500.0,0.00011039,2]
[353262544,1739722239486,-500.0,0.00011039,2]
[353262545,1739722239495,-500.0,0.00011039,2]
[353262546,1739722239505,-500.0,0.00011039,2]
[353262547,1739722239514,-500.0,0.00011039,2]
[353262548,1739722239524,-500.0,0.00011039,2]
[353262549,1739722239533,-500.0,0.00011039,2]
[353262550,1739722239542,-500.0,0.00011039,2]
[353262551,1739722239552,-500.0,0.00011039,2]
[353262552,1739722239561,-500.0,0.00011039,2]
[353262553,1739722239571,-500.0,0.00011039,2]
[353262554,1739722239580,-500.0,0.00011039,2]
[353262555,1739722239589,-579.79,0.00011039,2]
[353262556,1739722239599,-500.0,0.00011039,2]
[353262557,1739722239609,-500.0,0.00011039,2]
[353262558,1739722239618,-500.0,0.00011039,2]
[353262559,1739722239628,-500.0,0.00011039,2]
[353262560,1739722239638,-500.0,0.00011039,2]
[353262561,1739722239647,-500.0,0.00011039,2]
[353262562,1739722239656,-500.0,0.00011039,2]
[353262563,1739722239665,-500.0,0.00011039,2]
[353262564,1739722239674,-500.0,0.00011039,2]
[353262565,1739722239683,-500.0,0.00011039,2]
[353262566,1739722239692,-500.0,0.00011039,2]
[353262567,1739722239701,-500.0,0.00011039,2]
[353262568,1739722239711,-500.0,0.00011039,2]
[353262569,1739722239720,-500.0,0.00011039,2]
[353262570,1739722239733,-500.0,0.00011039,2]
[353262571,1739722239742,-500.0,0.00011039,2]
[353262572,1739722239751,-500.0,0.00011039,2]
[353262573,1739722239760,-500.0,0.00011039,2]
[353262574,1739722239770,-500.0,0.00011039,2]
[353262575,1739722239779,-500.0,0.00011039,2]
[353262576,1739722239789,-706.17,0.00011039,2]
[353262577,1739722239807,-500.0,0.00011039,2]
[353262578,1739722239816,-500.0,0.00011039,2]
[353262579,1739722239826,-500.0,0.00011039,2]
[353262580,1739722239835,-500.0,0.00011039,2]
[353262581,1739722239844,-500.0,0.00011039,2]
[353262582,1739722239852,-500.0,0.00011039,2]
[353262583,1739722239862,-500.0,0.00011039,2]
[353262584,1739722239871,-500.0,0.00011039,2]
[353262585,1739722239882,-627.39305322,0.00011039,2]
[353262586,1739722239892,-721.65,0.00011039,2]
[353262587,1739722239901,-500.0,0.00011039,2]
[353262588,1739722239911,-500.0,0.00011039,2]
[353262589,1739722239920,-500.0,0.00011039,2]
[353262590,1739722239930,-500.0,0.00011039,2]
[353262591,1739722239940,-500.0,0.00011039,2]
[353262592,1739722239950,-500.0,0.00011039,2]
[353262593,1739722239960,-500.0,0.00011039,2]
[353262594,1739722239970,-500.0,0.00011039,2]
[353262595,1739722239980,-1068.68269472,0.0001106,2]
[353262596,1739722239989,-500.0,0.00011098,2]
[353262597,1739722240000,-500.0,0.00011098,2]
[353262598,1739722240009,-680.35,0.00011098,2]
[353262599,1739722240021,-500.0,0.00011098,2]
[353262600,1739722240032,-730.51,0.00011098,2]
[353262601,1739722240043,-500.0,0.00011098,2]
[353262602,1739722240053,-744.11,0.00011098,2]
[353262604,1739722240062,-518.56,0.00011098,2]
[353262605,1739722240072,-500.0,0.00011098,2]
[353262606,1739722240081,-1094.78,0.00011098,2]
[353262607,1739722240091,-500.0,0.00011098,2]
[353262608,1739722240101,-1254.55,0.00011098,2]
[353262609,1739722240111,-624.5,0.00011098,2]
[353262610,1739722240121,-500.0,0.00011098,2]
[353262611,1739722240131,-561.95,0.00011098,2]
[353262612,1739722240140,-500.0,0.00011098,2]
[353262613,1739722240149,-500.0,0.00011098,2]
[353262614,1739722240158,-500.0,0.00011098,2]
[353262615,1739722240167,-1045.33,0.00011098,2]
[353262616,1739722240176,-500.0,0.00011098,2]
[353262617,1739722240185,-562.41,0.00011098,2]
[353262618,1739722240195,-500.0,0.00011098,2]
[353262619,1739722240205,-537.7,0.00011098,2]
[353262620,1739722240214,-1330.29,0.00011098,2]
[353262621,1739722240223,-1309.87,0.00011098,2]
[353262622,1739722240233,-500.0,0.00011098,2]
[353262623,1739722240243,-500.0,0.00011098,2]
[353262624,1739722240252,-500.0,0.00011098,2]
[353262625,1739722240263,-500.0,0.00011098,2]
[353262626,1739722240272,-587.45,0.00011098,2]
[353262627,1739722240281,-954.36,0.00011098,2]
[353262628,1739722240290,-500.0,0.00011098,2]
[353262629,1739722240300,-500.0,0.00011098,2]
[353262630,1739722240309,-500.0,0.00011098,2]
[353262631,1739722240319,-12236.98408809,0.00011099,2]
[353262632,1739722240328,-12236.98408807,0.00011099,2]
[353262633,1739722240337,-12236.98408807,0.00011099,2]
[353262634,1739722240346,-12236.98408807,0.00011099,2]
[353262635,1739722240355,-7423.86941202,0.00011099,2]
[353262636,1739722240365,-7423.86941194,0.00011099,2]
[353262637,1739722240374,-7423.86941194,0.00011099,2]
[353262638,1739722240385,-7423.86941194,0.00011099,2]
[353262639,1739722240394,-7423.86941194,0.00011099,2]
[353262640,1739722240404,-7423.86941194,0.00011099,2]
[353262641,1739722240413,-7423.86941194,0.00011103,2]
[353262642,1739722240424,-500.0,0.0001112,2]
[353262643,1739722240433,-500.0,0.0001112,2]
[353262644,1739722240443,-500.0,0.0001112,2]
[353262645,1739722240452,-500.0,0.0001112,2]
[353262646,1739722240462,-500.0,0.0001112,2]
[353262647,1739722240472,-500.0,0.0001112,2]
[353262648,1739722240481,-500.0,0.0001112,2]
[353262649,1739722240490,-500.0,0.0001112,2]
[353262650,1739722240499,-500.0,0.0001112,2]
[353262651,1739722240509,-500.0,0.0001112,2]
[353262652,1739722240518,-500.0,0.0001112,2]
[353262653,1739722240528,-500.0,0.0001112,2]
[353262654,1739722240538,-500.0,0.0001112,2]
[353262655,1739722240547,-500.0,0.0001112,2]
[353262656,1739722240557,-500.0,0.0001112,2]
[353262657,1739722240567,-527.75,0.0001112,2]
[353262658,1739722240577,-500.0,0.0001112,2]
[353262659,1739722240587,-500.0,0.0001112,2]
[353262660,1739722240597,-500.0,0.0001112,2]
[353262661,1739722240607,-500.0,0.0001112,2]
[353262662,1739722240617,-500.0,0.0001112,2]
[353262663,1739722240626,-500.0,0.0001112,2]
[353262664,1739722240636,-500.0,0.0001112,2]
[353262665,1739722240646,-500.0,0.0001112,2]
[353262666,1739722240656,-500.0,0.0001112,2]
[353262667,1739722240665,-500.0,0.0001112,2]
[353262668,1739722240675,-500.0,0.0001112,2]
[353262669,1739722240684,-500.0,0.0001112,2]
[353262670,1739722240693,-500.0,0.0001112,2]
[353262671,1739722240703,-500.0,0.0001112,2]
[353262672,1739722240712,-162.55885828,0.0001112,2]
[353262673,1739722240722,-500.0,0.0001112,2]
[353262674,1739722240731,-500.0,0.0001112,2]
[353262675,1739722240741,-500.0,0.0001112,2]
[353262676,1739722240750,-500.0,0.0001112,2]
[353262677,1739722240761,-500.0,0.0001112,2]
[353262678,1739722240770,-500.0,0.0001112,2]
[353262680,1739722240779,-500.0,0.0001112,2]
[353262681,1739722240789,-500.0,0.0001112,2]
[353262682,1739722240799,-500.0,0.0001112,2]
[353262683,1739722240809,-500.0,0.0001112,2]
[353262684,1739722240818,-500.0,0.0001112,2]
[353262685,1739722240828,-500.0,0.0001112,2]
[353262686,1739722240839,-334.019757,0.0001112,2]
[353262687,1739722240848,-500.0,0.0001112,2]
[353262688,1739722240858,-500.0,0.0001112,2]
[353262689,1739722240867,-442.486785,0.0001112,2]
[353262690,1739722240877,-500.0,0.0001112,2]
[353262691,1739722240886,-2145.36,0.0001112,2]
[353262692,1739722240896,-500.0,0.0001112,2]
[353262693,1739722240906,-536.29,0.0001112,2]
[353262694,1739722240915,-500.0,0.0001112,2]
[353262695,1739722240925,-500.0,0.0001112,2]
[353262696,1739722240934,-609.14,0.0001112,2]
[353262697,1739722240944,-512.74,0.0001112,2]
[353262698,1739722240954,-500.0,0.0001112,2]
[353262699,1739722240963,-500.0,0.0001112,2]
[353262700,1739722240973,-663.59,0.0001112,2]
[353262701,1739722240983,-1575.94,0.0001112,2]
[353262702,1739722240992,-500.0,0.0001112,2]
[353262703,1739722241002,-558.19,0.0001112,2]
[353262704,1739722241011,-500.0,0.0001112,2]
[353262705,1739722241023,-690.88,0.0001112,2]
[353262706,1739722241033,-500.0,0.0001112,2]
[353262707,1739722241042,-500.0,0.0001112,2]
[353262708,1739722241052,-680.75,0.0001112,2]
[353262709,1739722241062,-500.0,0.0001112,2]
[353262710,1739722241072,-865.4,0.0001112,2]
[353262711,1739722241081,-500.0,0.0001112,2]
[353262712,1739722241091,-1772.42,0.0001112,2]
[353262713,1739722241100,-873.89,0.0001112,2]
[353262714,1739722241110,-500.0,0.0001112,2]
[353262715,1739722241119,-500.0,0.0001112,2]
[353262716,1739722241131,-500.0,0.0001112,2]
[353262717,1739722241140,-500.0,0.0001112,2]
[353262718,1739722241149,-500.0,0.0001112,2]
[353262719,1739722241159,-500.0,0.0001112,2]
[353262720,1739722241168,-500.0,0.0001112,2]
[353262721,1739722241178,-500.0,0.0001112,2]
[353262722,1739722241188,-500.0,0.0001112,2]
[353262723,1739722241198,-500.0,0.0001112,2]
[353262724,1739722241207,-500.0,0.0001112,2]
[353262725,1739722241217,-500.0,0.0001112,2]
[353262726,1739722241226,-500.0,0.0001112,2]
[353262727,1739722241236,-500.0,0.0001112,2]
[353262728,1739722241245,-500.0,0.0001112,2]
[353262729,1739722241255,-642.88062634,0.0001112,2]
[353262730,1739722241264,-500.0,0.0001112,2]
[353262731,1739722241274,-500.0,0.0001112,2]
[353262732,1739722241283,-500.0,0.0001112,2]
[353262733,1739722241292,-500.0,0.0001112,2]
[353262734,1739722241302,-500.0,0.0001112,2]
[353262735,1739722241311,-525.89,0.0001112,2]
[353262736,1739722241321,-500.0,0.0001112,2]
[353262737,1739722241330,-500.0,0.00011121,2]
[353262738,1739722241340,-500.0,0.00011121,2]
[353262739,1739722241350,-500.0,0.00011121,2]
[353262740,1739722241359,-500.0,0.00011121,2]
[353262741,1739722241369,-500.0,0.00011121,2]
[353262742,1739722241379,-500.0,0.00011121,2]
[353262743,1739722241389,-500.0,0.00011121,2]
[353262744,1739722241399,-500.0,0.00011121,2]
[353262745,1739722241408,-500.0,0.00011121,2]
[353262746,1739722241418,-500.0,0.00011121,2]
[353262747,1739722241428,-500.0,0.00011121,2]
[353262748,1739722241437,-500.0,0.00011121,2]
[353262749,1739722241447,-500.0,0.00011121,2]
[353262750,1739722241456,-500.0,0.00011121,2]
[353262751,1739722241466,-500.0,0.00011121,2]
[353262752,1739722241475,-500.0,0.00011121,2]
[353262753,1739722241485,-500.0,0.00011121,2]
[353262754,1739722241495,-500.0,0.00011121,2]
[353262755,1739722241505,-500.0,0.00011121,2]
[353262756,1739722241515,-477.63780291,0.00011121,2]
[353262757,1739722241524,-500.0,0.00011121,2]
[353262758,1739722241534,-500.0,0.00011121,2]
[353262759,1739722241543,-500.0,0.00011121,2]
[353262760,1739722241552,-500.0,0.00011121,2]
[353262761,1739722241563,-500.0,0.00011121,2]
[353262762,1739722241573,-500.0,0.00011121,2]
[353262763,1739722241583,-500.0,0.00011121,2]
[353262764,1739722241593,-500.0,0.00011121,2]
[353262765,1739722241603,-500.0,0.00011121,2]
[353262766,1739722241613,-500.0,0.00011121,2]
[353262767,1739722241623,-500.0,0.00011121,2]
[353262768,1739722241633,-500.0,0.00011121,2]
[353262769,1739722241642,-500.0,0.00011121,2]
[353262770,1739722241652,-500.0,0.00011121,2]
[353262771,1739722241661,-500.0,0.00011121,2]
[353262772,1739722241671,-500.0,0.00011121,2]
[353262773,1739722241681,-500.0,0.00011121,2]
[353262774,1739722241690,-497.97007361,0.00011121,2]
[353262775,1739722241700,-500.0,0.00011121,2]
[353262776,1739722241710,-500.0,0.00011121,2]
[353262777,1739722241720,-500.0,0.00011121,2]
[353262778,1739722241729,-500.0,0.00011121,2]
[353262779,1739722241738,-500.0,0.00011121,2]
[353262780,1739722241748,-500.0,0.00011121,2]
[353262781,1739722241757,-500.0,0.00011121,2]
[353262782,1739722241766,-500.0,0.00011121,2]
[353262783,1739722241776,-500.0,0.00011121,2]
[353262784,1739722241786,-500.0,0.00011121,2]
[353262785,1739722241795,-500.0,0.00011121,2]
[353262786,1739722241804,-500.0,0.00011121,2]
[353262787,1739722241814,-500.0,0.00011121,2]
[353262788,1739722241823,-500.0,0.00011121,2]
[353262789,1739722241832,-500.0,0.00011121,2]
[353262790,1739722241841,-500.0,0.00011121,2]
[353262791,1739722241851,-500.0,0.00011121,2]
[353262792,1739722241860,-500.0,0.00011121,2]